Cogmind - Beta 14 @@@ ROGUE MODE // 2025.03.28 @ 18:16:34 Player: nitr0gen Result: Destroyed by L-41 Fighter with Axe Performance ------------- Evolutions (3) 1500 Regions Visited (4) 800 Robots Destroyed (25) 125 Value Destroyed (1065) 1065 Prototype IDs (1) 20 Alien Tech Used (0) 0 Bonus (0) 0 TOTAL SCORE: 3510 Bonus ------- None Cogmind --------- Core Integrity 0/700 Matter 110/300 Energy 289/290 System Corruption 3% Temperature Cool (0) Movement Core (200) Ox3 Location -7/Factory Parts ------- > --- POWER (3) -------- Improved Deuterium Engine > --- PROPULSION (3) --- (None) > --- UTILITY (3) ------ (None) > --- WEAPON (4) ------- (None) > --- INVENTORY (5) ---- Advanced EMP Blaster Peak State ------------ > --- POWER ------------ Improved Ion Engine Nuclear Core Light Nuclear Core > --- PROPULSION ------- Improved Aluminum Leg VSS Leg VSS Leg > --- UTILITY ---------- Advanced Targeting Computer Light Armor Plating Improved Light Armor Plating > --- WEAPON ----------- Assault Cannon Assault Cannon Assault Cannon > --- INVENTORY -------- VSS Leg [Rating: 32] Favorites ----------- Power Ion Engine Engine Ion Engine Power Core Light Nuclear Core Propulsion Aluminum Leg Leg Aluminum Leg Hover Unit Gravmag System Utility Targeting Computer Device Terrain Scanner Processor Targeting Computer Protection Light Armor Plating Weapon Assault Cannon Energy Gun EM Shotgun Ballistic Gun Assault Rifle Ballistic Cannon Assault Cannon Launcher Advanced EMP Blaster Impact Weapon Mace Build | -11 -10 -9 -8 -7 ------- Run | Yrd Mat Mat Mat Fac Slots Evolved 6 | . . 2 2 2 Power 2 | . . 1 1 . Propulsion 1 | . . . 1 . Utility 1 | . . . . 1 Weapon 2 | . . 1 . 1 Parts Attached 36 | 5 2 6 9 14 Power 8 | 1 . 1 3 3 Engine 6 | 1 . 1 1 3 Core 2 | . . . 2 . Reactor . | . . . . . Propulsion 9 | 2 . 1 1 5 Treads . | . . . . . Leg 8 | 2 . 1 1 4 Wheel . | . . . . . Hover 1 | . . . . 1 Flight . | . . . . . Utility 5 | . 2 . 1 2 Device 1 | . 1 . . . Storage . | . . . . . Processor 2 | . 1 . . 1 Hackware . | . . . . . Protection 2 | . . . 1 1 Artifact . | . . . . . Weapon 14 | 2 . 4 4 4 Energy Gun 3 | . . 1 . 2 Energy Cannon . | . . . . . Ballistic Gun 4 | 2 . 2 . . Ballistic Cannon 5 | . . 1 4 . Launcher 1 | . . . . 1 Special Weapon . | . . . . . Impact Weapon 1 | . . . . 1 Slashing Weapon . | . . . . . Piercing Weapon . | . . . . . Special Melee Weapon . | . . . . . Unidentified Prototypes 1 | . . . . 1 Corrupted Parts 2 | . . . 2 . System Corruption 4 | . . . 4 . Parts Lost 27 | . . 1 7 19 Power 6 | . . 1 1 4 Propulsion 6 | . . . 1 5 Utility 4 | . . . 1 3 Weapon 11 | . . . 4 7 Highest Loss Streak 9 | . . 1 4 9 To Critical Strikes . | . . . . . Average Slot Usage (%) 78 | . 82 94 74 66 Engine 10 | . 14 16 11 5 Core 5 | . . . 7 9 Leg 19 | . 28 22 17 15 Device 3 | . 2 11 2 . Processor 8 | . 9 11 9 5 Protection 3 | . . . . 7 Energy Gun 1 | . . . 3 1 Ballistic Gun 12 | . 28 23 15 . Ballistic Cannon 11 | . . 8 7 16 Peak Build Rating 32 | 5 7 13 22 32 Average Rating 15 | 2 5 10 15 22 On Entrance 9 | . 5 7 12 22 Naked Turns . | . . . . . Heaviest Build 40 | 8 9 19 37 40 Greatest Support 37 | 20 20 23 23 37 Greatest Overweight (x) 6 | . . . 1 6 Average Overweight (x) . | . . . . 1 Largest Inventory Capacity 5 | 5 5 5 5 5 Average Capacity 5 | 5 5 5 5 5 Most Carried 5 | 4 3 5 5 3 Average Carried 2 | 2 2 3 3 . Final Capacity 5 | 5 5 5 5 5 Final Carried 5 | 2 2 5 1 1 Class Distribution -------------------- 37% | Gunner 31% | Mutant 16% | Scavenger-Tank 13% | Scavenger-Gunner Dominant Class ---------------- Mutant | -10/Materials Gunner | -9/Materials Scavenger-Gunner | -8/Materials Scavenger-Tank | -7/Factory Resources | -11 -10 -9 -8 -7 ----------- Run | Yrd Mat Mat Mat Fac Matter Collected 823 | 211 32 234 151 195 Remotely . | . . . . . Salvage Created 906 | . 78 224 293 311 Parts 48 | . 7 20 13 8 Haulers Intercepted . | . . . . . Recyclers Shooed . | . . . . . Parts Field Recycled . | . . . . . Retrieved Matter . | . . . . . Parts Self-Destructed . | . . . . . Prevented . | . . . . . Kills | -11 -10 -9 -8 -7 ------- Run | Yrd Mat Mat Mat Fac Combat Hostiles Destroyed 22 | . 4 5 5 8 Guns 11 | . 4 4 2 1 Cannons 9 | . . 1 3 5 AOE 2 | . . . . 2 Classes Destroyed 6 | . 2 3 . 1 Operator 1 | . . 1 . . Watcher 2 | . . 1 1 . Swarmer 3 | . 3 . . . Grunt 13 | . 1 2 3 7 Brawler 1 | . . . . 1 Sentry 5 | . . 3 2 . Best Kill Streak 4 | . 3 4 4 4 Combat Bots Only 4 | . 3 2 3 4 Max Kills in Single Turn 2 | . 1 1 2 2 Gunslinging 1 | . . . 1 . Exploded 2 | . . . . 2 Melee . | . . . . . Uniques/NPCs Destroyed . | . . . . . Combat | -11 -10 -9 -8 -7 -------- Run | Yrd Mat Mat Mat Fac Hostile Shots Fired 291 | . 24 36 59 172 Missed 71 | . 8 10 16 37 Damage Taken 3466 | . 142 377 650 2297 Core 938 | . 63 45 111 719 Absorbed by Shields . | . . . . . Core Remaining (%) 85 | 100 74 88 79 . Volleys Fired 76 | . 9 17 16 34 Largest 4 | . 2 3 3 4 Hottest 197 | . 40 84 132 197 Shots Fired 175 | . 18 51 44 62 Gun 97 | . 18 34 36 9 Cannon 74 | . . 17 8 49 Launcher 4 | . . . . 4 Special . | . . . . . Kinetic 154 | . 18 51 36 49 Thermal 7 | . . . . 7 Explosive . | . . . . . Electromagnetic 14 | . . . 8 6 Robot Hit Streak 9 | . 7 7 5 9 Robot Miss Streak 4 | . 1 2 4 2 Penetration Max . | . . . . . Secondary Targets 3 | . 2 . 1 . Max Gunslinging Chain 1 | . 1 . 1 . Shots Hit Robots 112 | . 15 29 25 43 Core Hits 49 | . 6 14 9 20 Critical Kills 1 | . . . 1 . Critical Parts Destroyed 1 | . 1 . . . Critical Strikes 5 | . 1 . 1 3 Destroy 2 | . 1 . 1 . Blast 3 | . . . . 3 Melee Attacks 5 | . . . . 5 Impact 5 | . . . . 5 Slashing . | . . . . . Piercing . | . . . . . Sneak Attacks . | . . . . . Combat Hostiles . | . . . . . Follow-up Attacks . | . . . . . Damage Inflicted 2282 | . 155 474 422 1231 Guns 754 | . 155 192 293 114 Cannons 1119 | . . 279 129 711 Explosions 219 | . . . . 219 Melee 187 | . . . . 187 Ramming 3 | . . 3 . . Kinetic 1648 | . 155 471 311 711 Thermal 82 | . . . . 82 Explosive . | . . . . . Electromagnetic 362 | . . . 111 251 Impact 187 | . . . . 187 Slashing . | . . . . . Piercing . | . . . . . Highest Corruption 4 | . . . 4 3 Average Corruption 3 | . . . 3 3 Corruption Purged . | . . . . . Corruption Blocked . | . . . . . Effects 2 | . . . 2 . Message Errors 1 | . . . 1 . Matter Fused 1 | . . . 1 . Overload Shots . | . . . . . Overflow Damage 88 | . . . . 88 Projectiles 10 | . . . . 10 Explosions 78 | . . . . 78 Melee . | . . . . . Knockbacks 17 | . . 5 . 12 Impact 1 | . . 1 . . Kinetic 15 | . . 3 . 12 Secondary 1 | . . 1 . . Self-Inflicted Damage 136 | . . . . 136 Shots 3 | . . . . 3 Rammed . | . . . . . Targets Rammed 3 | . 1 2 . . Kicked 3 | . 1 2 . . Crushed . | . . . . . Highest Temperature 794 | . 6 217 276 794 Average Temperature 208 | . 6 101 109 289 Received Heat Transfer 1827 | . 18 162 342 1305 Effects 41 | . . . . 41 Shutdowns 17 | . . . . 17 Energy Bleed 5 | . . . . 5 Interference 6 | . . . . 6 Matter Decay 2 | . . . . 2 Short Circuit 4 | . . . . 4 Damage (minor) 3 | . . . . 3 Damage (major) 4 | . . . . 4 Siege Activations . | . . . . . Robots Corrupted . | . . . . . Combat Hostiles . | . . . . . Parts Fried 2 | . . . 2 . Impact Corruptions . | . . . . . Robots Melted . | . . . . . Combat Hostiles . | . . . . . Parts Melted . | . . . . . Heat Transferred 185 | . . . . 185 Parts Sabotaged . | . . . . . Parts Stolen . | . . . . . Parts Stripped . | . . . . . Power Chain Reactions . | . . . . . Alert | -11 -10 -9 -8 -7 ------- Run | Yrd Mat Mat Mat Fac Peak Influence 250 | . 149 237 160 250 Initial 72 | . . 62 15 72 Average 98 | . 39 100 93 120 Maximum Alert Level 1 | . . 1 . 1 Low Security (%) 88 | 100 100 90 100 79 Level 1 11 | . . 9 . 20 Level 2 . | . . . . . Level 3 . | . . . . . Level 4 . | . . . . . Level 5 . | . . . . . High Security . | . . . . . Max Security . | . . . . . Squads Dispatched 6 | . 1 1 1 3 Investigation 2 | . 1 . 1 . Extermination . | . . . . . Reinforcement 2 | . . 1 . 1 Assault 1 | . . . . 1 Garrison 1 | . . . . 1 Intercept . | . . . . . Searches Triggered . | . . . . . Construction Impeded . | . . . . . Haulers Reinforced . | . . . . . Active Scanning Responses . | . . . . . Cargo Convoy Interrupts . | . . . . . Stealth | -11 -10 -9 -8 -7 --------- Run | Yrd Mat Mat Mat Fac Distress Signals 5 | . 1 2 1 1 Communications Jammed . | . . . . . Distress Signals . | . . . . . Times Spotted 46 | . 5 9 9 23 Peak Tracking Total 5 | . 4 4 4 5 Tactical Retreats 6 | . 1 . 1 4 Traps | -11 -10 -9 -8 -7 ------- Run | Yrd Mat Mat Mat Fac Traps Triggered 1 | . 1 . . . Indirectly . | . . . . . Trap Hack Attempts . | . . . . . Triggered . | . . . . . Disarmed . | . . . . . Reprogrammed . | . . . . . Reused . | . . . . . Traps Extracted . | . . . . . Installed . | . . . . . Triggered . | . . . . . Machines | -11 -10 -9 -8 -7 ---------- Run | Yrd Mat Mat Mat Fac Machines Disabled 3 | . . . . 3 Max in Single Turn 2 | . . . . 2 Garrison Access 1 | . . . . 1 Machines Repaired . | . . . . . Machines Dismantled . | . . . . . Machines Sabotaged . | . . . . . Overloaded Fab Kills . | . . . . . Hacking | -11 -10 -9 -8 -7 --------- Run | Yrd Mat Mat Mat Fac Machines Accessed 3 | . 2 . 1 . Terminals 3 | . 2 . 1 . Fabricators . | . . . . . Repair Stations . | . . . . . Recycling Units . | . . . . . Scanalyzers . | . . . . . Garrison Access . | . . . . . Total Hacks 9 | . 5 . 4 . Successful 5 | . 2 . 3 . Failed 4 | . 3 . 1 . Catastrophic 1 | . 1 . . . Database Lockouts . | . . . . . Manual . | . . . . . Terminals 9 | . 5 . 4 . Fabricators . | . . . . . Repair Stations . | . . . . . Recycling Units . | . . . . . Scanalyzers . | . . . . . Garrison Access . | . . . . . Terminal Hacks 5 | . 2 . 3 . Record 4 | . 2 . 2 . Maintenance Status 1 | . . . 1 . Fabricator Hacks . | . . . . . Repair Station Hacks . | . . . . . Recycling Unit Hacks . | . . . . . Scanalyzer . | . . . . . Garrison Access Hacks . | . . . . . Unauthorized Hacks . | . . . . . Terminals . | . . . . . Fabricators . | . . . . . Repair Stations . | . . . . . Recycling Units . | . . . . . Scanalyzers . | . . . . . Garrison Access . | . . . . . Data Cores Recovered 1 | . . 1 . . Used . | . . . . . Hacking Detections 3 | . 2 . 1 . Full Trace Events 1 | . . . 1 . Feedback Events . | . . . . . Feedback Blocked . | . . . . . Robot Schematics Acquired . | . . . . . Robots Built . | . . . . . Authchips . | . . . . . Time . | . . . . . Total Robot Build Rating . | . . . . . Part Schematics Acquired . | . . . . . Parts Built . | . . . . . Authchips . | . . . . . Time . | . . . . . Total Part Build Rating . | . . . . . Parts Repaired . | . . . . . Time . | . . . . . Parts Recycled . | . . . . . Recycled Matter . | . . . . . Retrieved Matter . | . . . . . Retrieved Components . | . . . . . Parts Scanalyzed . | . . . . . Part Schematics Acquired . | . . . . . Parts Damaged . | . . . . . Bothacking | -11 -10 -9 -8 -7 ------------ Run | Yrd Mat Mat Mat Fac Used RIF Installer . | . . . . . Robots Hacked . | . . . . . Non-combat . | . . . . . Combat . | . . . . . Robot Hacks Applied . | . . . . . Relay Couplers Released 3 | . . . . 3 Machine Destruction 3 | . . . . 3 Fabnet Peak Effective % . | . . . . . Robots Rewired . | . . . . . Allies Hacked . | . . . . . Hacks Repelled . | . . . . . Allies | -11 -10 -9 -8 -7 -------- Run | Yrd Mat Mat Mat Fac Total Allies . | . . . . . Largest Group . | . . . . . Highest-Rated Group . | . . . . . Highest-Rated Ally . | . . . . . Total Orders . | . . . . . Ally Attacks . | . . . . . Total Damage . | . . . . . Kills . | . . . . . Allies Corrupted . | . . . . . Allies Melted . | . . . . . Intel | -11 -10 -9 -8 -7 ------- Run | Yrd Mat Mat Mat Fac Robot Analysis Total . | . . . . . Derelict Logs Recovered . | . . . . . Drone Launches . | . . . . . Drone Recoveries . | . . . . . Exploration | -11 -10 -9 -8 -7 ------------- Run | Yrd Mat Mat Mat Fac Turns Passed 1556 | 47 187 450 195 677 Spaces Moved 893 | 36 131 301 95 330 Core 65 | 10 . . . 55 Treads . | . . . . . Legs 802 | 26 131 301 95 249 Wheels . | . . . . . Hover 26 | . . . . 26 Flight . | . . . . . Fastest Speed 50 | 50 120 120 120 60 Average Speed 137 | 100 120 120 139 162 Slowest Speed 350 | 120 120 120 190 350 Overloaded Moves . | . . . . . Propulsion Burnouts . | . . . . . Robots Hopped . | . . . . . Cave-ins Triggered . | . . . . . Exploration Rate (%) 15 | 3 25 27 16 8 Regions Visited 4 Branch Regions . Pre-discovered Areas . | . . . . . Known Exits Taken . | . . . . . Unknown Exits Taken 4 | 1 1 1 1 . Scrap Searched . | . . . . . Spaces Dug . | . . . . . Terrain Destroyed 35 | . . 3 2 30 Melee . | . . . . . Projectile 6 | . . 3 2 1 AOE 29 | . . . . 29 Terrain Rammed . | . . . . . Walls Destroyed . | . . . . . Machines Disabled . | . . . . . Actions | -11 -10 -9 -8 -7 --------- Run | Yrd Mat Mat Mat Fac Total 1081 | 47 144 356 124 410 Wait 29 | . . 18 . 11 Move 889 | 35 130 300 94 330 Hop . | . . . . . Pick Up 36 | 7 2 9 5 13 Fast Attach . | . . . . . Attach 34 | 5 2 6 9 12 Detach . | . . . . . Swap 2 | . . . . 2 Drop 7 | . . 4 . 3 Fire 76 | . 9 17 16 34 Melee 5 | . . . . 5 Ram . | . . . . . Kick 3 | . 1 2 . . Crush . | . . . . . Escape Stasis . | . . . . . Rewire . | . . . . . Trap . | . . . . . Miscellaneous . | . . . . . Route ------- -11/Scrapyard -10/Materials -9/Materials (discovered 2 exits: *Mat / [*Min]) -8/Materials -7/Factory History --------- Turn | Location | Event 8 | -11/Scrapyard | Discovered new exit (range 16) 48 | -11/Scrapyard | Entered Materials 162 | -10/Materials | Discovered new exit (range 16) 235 | -10/Materials | Entered another Materials area 235 | -9/Materials | Evolved 2 slots: Power x1, Weapon x1 427 | -9/Materials | Discovered new exit (range 15) 531 | -9/Materials | Build established: Gunner 673 | -9/Materials | Discovered new exit (range 10) 685 | -9/Materials | Entered another Materials area 685 | -8/Materials | Evolved 2 slots: Power x1, Propulsion x1 785 | -8/Materials | Lost 4 parts (1p1n1u1w) 829 | -8/Materials | Discovered new exit (range 8) 880 | -8/Materials | Entered Factory 880 | -7/Factory | Evolved 2 slots: Utility x1, Weapon x1 889 | -7/Factory | Lost 3 parts (3w) 1366 | -7/Factory | Lost 8 parts (3p1n2u2w) 1393 | -7/Factory | Garrison activated, responded to threat 1408 | -7/Factory | Core integrity fell below 50% 1466 | -7/Factory | Core integrity fell below 20% 1496 | -7/Factory | Lost 9 parts (1p4n1u3w) 1557 | -7/Factory | Destroyed by L-41 Fighter with Axe Last Messages --------------- Access. Relay Coupler [NC] tumbles out of Garrison Access. K-01 Serf collects debris. U-05 Engineer lays Concrete. K-01 Serf collects debris. Acquired Lightning Gun. U-05 Engineer lays Concrete. Acquired Imp. Deuterium Engine. C-30 ARC bursts open, deploying its payload. G-50 Soldier unfolds itself. L-41 Fighter unfolds itself. B-48 Gladiator unfolds itself. M-28 Smith unfolds itself. Door malfunctions. G-50 Soldier misfires. Adv. EMP Blaster destroyed. System corrupted by crushing effect (+3). Lightning Gun destroyed. M-28 Smith repairs G-50 Soldier. Map ----- +----------------------------------------------------+ | ?????????????????????????????# #????# | | ?????????????????????????????# #????? | | ????????????????????????##+### ###### | | ????????????????????????? # | | ?????????????????????????? # | | ?????????????????????????? """ # | | ??????????????????????????? """ """ # | | ??????????????????????????? """"" "" # | | ????????????????????????????## """"" F"" # | | ?????????????????????????????# """ # | | ?????????????????????????????# """ # | | ?????????????????????????????# """"" # | | ?????????????????????????????# """"" + | | ?????????????????????????????# # | | ?????????????????????????????# # | | ?????????????????????????????# ############### | | ?????????????????????????????# #?????????????# | | ?????????????????????????????# #?????????????# | | ?????????????????????????????# #?????????????# | | ?????????????????????????????# ##############? | | ?????????????????????????????# # #? | | ?????????????????????????????# # """""" #? | | ?????????????????????????????# # """""" #? | | ??????????????????????######## # """""" #? | | ??????????????????????# # """""" #? | | ??????????????????"" # @l # #? | | ??????????????????? + b + """""" #? | | ??????????????????????# l # """""" #? | | ??????????????????????# gm # """""" #? | | ??????????????????????#####/##% # """""" #? | | ??????????????????????# # # #? | | ??????????????????????# # # ! #? | | ????????????????""????# + ###########+##? | | ????????????????"""???# # #?????????# #?? | | ????????????????? ??# # #?????????# #?? | | ?????????????????""" ?# # #?????##### ### | | ????????????????"""" # # #?????# | | ?????????????# """"" " "# ####### | | ?????????????# " # | | ?????????????# ] # T" | | ?????????????#######""" = " " | | ???????????????????## # | | ???????????????????# " !! " | | ???????????????????# """""""# ###### | | ??????????????######""" """"## # ] # | | ??????? ! / ] ######### | | ??????? # #???????? | | ??????? " # #???????? | | ???????? *%# #???????? | | ???????? [% ######???????? | +----------------------------------------------------+ Best States ------------- Heat Dissipation 34 Energy Generation 30 Energy Capacity 465 Matter Stores 300 Matter Capacity 300 Sight Range 16 Terrain Scan Range 14 Terrain Scan Density 10 Armor Coverage 300 Evasion (%) 55 Targeting Accuracy 8 Item Schematics ----------------- None Robot Schematics ------------------ None Fabricated ------------ Nothing Alien Tech Used ----------------- None Achievements -------------- None Challenges ------------ None Game ------ Seed ExplosiveRiotArray Manual? 0 Play Time 00:15:09 Cumulative 4.0 hours Start 2025.03.28 @ 18:01:32 End 2025.03.28 @ 18:16:34 Sessions 1 Manual Loads 0 Difficulty Rogue Special Mode None Game No. 14 Rogue 14 Adventurer 0 Explorer 0 Win Type - Total 0 Types 0/0/0/0/0/0/0/0/0 Lore% 8 Gallery% 9 Achievement% 9 Wizard Run 0 Options --------- Layout 1 ASCII 0 Keyboard 0 Movement Mouse Keybinds 0 Fullscreen 1 Font 32/SmallcapsGlow Map View 50x35 Zoom Use 0% Tactical HUD 0 Map Filters NONE Filters NONE Steam 1 RUN: 2d9a5cbf-0418-41d4-8bef-c7f7d808696b